Cogmind - Beta 14 @@@ ROGUE MODE // 2024.12.02 @ 02:14:47 Player: akira Result: Destroyed by Y-45 Defender with Beam Rifle Performance ------------- Evolutions (2) 1000 Regions Visited (5) 1000 Robots Destroyed (44) 220 Value Destroyed (1111) 1111 Prototype IDs (2) 40 Alien Tech Used (0) 0 Bonus (0) 0 TOTAL SCORE: 3371 Bonus ------- None Cogmind --------- Core Integrity 0/550 Matter 37/300 Energy 100/100 System Corruption 2% Temperature Cool (18) Movement Core (550) Ox10 Location -8/Materials Parts ------- > --- POWER (1) -------- (None) > --- PROPULSION (3) --- (None) > --- UTILITY (5) ------ Medium Storage Unit Large Storage Unit Improved Trap Extractor (0/6) > --- WEAPON (2) ------- (None) > --- INVENTORY (15) --- Cesium-ion Thruster Improved Heat Sink Improved Signal Interpreter Transport Network Coupler EM Pulse Cannon Gauss Rifle Peak State ------------ > --- POWER ------------ Light Nuclear Core > --- PROPULSION ------- Light Treads Armored Treads Compact Wheel > --- UTILITY ---------- Large Storage Unit Structural Scanner Heavy Armor Plating Improved Trap Extractor > --- WEAPON ----------- Improved Assault Rifle Bore Cannon > --- INVENTORY -------- Cesium-ion Thruster Improved Heat Sink Medium Storage Unit Transport Network Coupler EM Pulse Cannon [Rating: 29] Favorites ----------- Power Nuclear Core Engine Light Ion Engine Power Core Nuclear Core Propulsion Light Treads Treads Light Treads Leg Aluminum Leg Wheel Compact Wheel Flight Unit Improved VTOL Module Utility Medium Storage Unit Device Structural Scanner Storage Medium Storage Unit Processor Signal Interpreter Protection Heavy Armor Plating Weapon Light Assault Rifle Energy Gun Medium Laser Ballistic Gun Light Assault Rifle Ballistic Cannon Bore Cannon Build | -11 -10 -10 -10 -9 -8 ------- Run | Yrd Mat Min Exi Min Mat Slots Evolved 4 | . . . . . 4 Power . | . . . . . . Propulsion 1 | . . . . . 1 Utility 3 | . . . . . 3 Weapon . | . . . . . . Parts Attached 39 | 5 5 6 . 8 15 Power 4 | 1 1 1 . . 1 Engine 2 | 1 1 . . . . Core 2 | . . 1 . . 1 Reactor . | . . . . . . Propulsion 13 | 2 . 4 . 2 5 Treads 5 | . . 1 . 2 2 Leg 4 | 2 . 2 . . . Wheel 3 | . . 1 . . 2 Hover . | . . . . . . Flight 1 | . . . . . 1 Utility 13 | 1 3 . . 2 7 Device 5 | . 1 . . 1 3 Storage 4 | 1 1 . . . 2 Processor 2 | . 1 . . . 1 Hackware . | . . . . . . Protection 2 | . . . . 1 1 Artifact . | . . . . . . Weapon 9 | 1 1 1 . 4 2 Energy Gun 1 | . 1 . . . . Energy Cannon . | . . . . . . Ballistic Gun 7 | 1 . 1 . 4 1 Ballistic Cannon 1 | . . . . . 1 Launcher . | . . . . . . Special Weapon . | . . . . . . Impact Weapon . | . . . . . . Slashing Weapon . | . . . . . . Piercing Weapon . | . . . . . . Special Melee Weapon . | . . . . . . Unidentified Prototypes 2 | . . . . . 2 Parts Lost 20 | . 2 1 . 6 11 Power 3 | . 1 . . 1 1 Propulsion 9 | . 1 1 . 2 5 Utility 4 | . . . . 1 3 Weapon 4 | . . . . 2 2 Highest Loss Streak 6 | . 1 1 . 6 4 To Critical Strikes . | . . . . . . Average Slot Usage (%) 86 | . 94 98 71 84 82 Engine 3 | . 13 5 . . . Core 6 | . . 8 14 10 5 Treads 9 | . . . . 6 22 Leg 14 | . 24 22 28 21 . Wheel 1 | . . 5 . . 1 Device 9 | . 4 . . 1 20 Storage 12 | . 14 14 14 14 9 Processor 6 | . 9 14 14 2 3 Protection 2 | . . . . 6 3 Energy Gun 3 | . 13 4 . . . Ballistic Gun 12 | . 14 22 . 19 7 Ballistic Cannon 2 | . . . . . 7 Peak Build Rating 29 | 6 9 14 13 16 29 Average Rating 14 | 4 8 11 12 12 23 On Entrance 7 | . 6 7 14 12 7 Naked Turns . | . . . . . . Heaviest Build 56 | 10 19 20 17 22 56 Greatest Support 60 | 20 20 32 32 40 60 Greatest Overweight (x) 11 | . 1 1 . . 11 Average Overweight (x) . | . . . . . 1 Largest Inventory Capacity 15 | 8 10 10 10 10 15 Average Capacity 10 | 6 9 10 10 10 12 Most Carried 10 | 8 10 10 10 10 9 Average Carried 7 | 5 8 8 9 8 5 Final Capacity 15 | 8 10 10 10 10 15 Final Carried 10 | 8 9 9 10 7 6 Class Distribution -------------------- 91% | Mutant 8% | Skirmisher Dominant Class ---------------- Mutant | -10/Materials Mutant | -10/Mines Mutant | -10/Exiles Mutant | -9/Mines Mutant | -8/Materials Resources | -11 -10 -10 -10 -9 -8 ----------- Run | Yrd Mat Min Exi Min Mat Matter Collected 996 | 171 261 39 . 117 408 Remotely . | . . . . . . Salvage Created 1155 | 46 508 . . 62 539 Parts 97 | 6 46 . . 6 39 Haulers Intercepted 1 | . 1 . . . . Recyclers Shooed 5 | 1 1 . . . 3 Parts Field Recycled . | . . . . . . Retrieved Matter . | . . . . . . Parts Self-Destructed . | . . . . . . Prevented . | . . . . . . Kills | -11 -10 -10 -10 -9 -8 ------- Run | Yrd Mat Min Exi Min Mat Combat Hostiles Destroyed 33 | . 13 . . 6 14 Guns 26 | . 13 . . 6 7 Cannons 7 | . . . . . 7 Classes Destroyed 11 | 1 7 . . 1 2 Worker 3 | . 2 . . . 1 Builder 1 | . 1 . . . . Tunneler 2 | 2 . . . . . Hauler 1 | . 1 . . . . Operator 1 | . 1 . . . . Watcher 3 | . 1 . . . 2 Swarmer 13 | . 5 . . 4 4 Grunt 15 | . 8 . . . 7 Sentry 2 | . . . . . 2 Demolisher 2 | . . . . 2 . Hunter 1 | . . . . . 1 Best Kill Streak 4 | 2 4 . . 4 4 Combat Bots Only 4 | . 2 . . 4 4 Max Kills in Single Turn 1 | 1 1 . . 1 1 Gunslinging . | . . . . . . Exploded . | . . . . . . Melee . | . . . . . . Uniques/NPCs Destroyed . | . . . . . . Combat | -11 -10 -10 -10 -9 -8 -------- Run | Yrd Mat Min Exi Min Mat Hostile Shots Fired 374 | . 62 . . 50 262 Missed 105 | . 15 . . 11 79 Damage Taken 3665 | . 457 95 . 834 2279 Core 802 | . 80 12 . 151 559 Absorbed by Shields . | . . . . . . Core Remaining (%) 51 | 100 . . . 2 . Volleys Fired 145 | 11 46 . . 30 58 Largest 2 | 1 2 . . 2 2 Hottest 80 | 20 70 . . 40 80 Shots Fired 263 | 11 92 . . 44 116 Gun 205 | 11 92 . . 44 58 Cannon 58 | . . . . . 58 Launcher . | . . . . . . Special . | . . . . . . Kinetic 217 | 11 46 . . 44 116 Thermal 46 | . 46 . . . . Explosive . | . . . . . . Electromagnetic . | . . . . . . Robot Hit Streak 17 | 5 8 . . 6 17 Robot Miss Streak 9 | 2 3 . . 2 9 Penetration Max 1 | . . . . . 1 Secondary Targets . | . . . . . . Shots Hit Robots 149 | 8 53 . . 27 61 Core Hits 76 | 3 28 . . 12 33 Critical Kills 5 | . . . . . 5 Critical Parts Destroyed 12 | . . . . . 12 Critical Strikes 19 | . 2 . . . 17 Burn 2 | . 2 . . . . Destroy 17 | . . . . . 17 Melee Attacks . | . . . . . . Impact . | . . . . . . Slashing . | . . . . . . Piercing . | . . . . . . Sneak Attacks . | . . . . . . Combat Hostiles . | . . . . . . Follow-up Attacks . | . . . . . . Damage Inflicted 2313 | 103 693 . . 213 1304 Guns 1540 | 103 693 . . 213 531 Cannons 755 | . . . . . 755 Explosions . | . . . . . . Melee . | . . . . . . Ramming 18 | . . . . . 18 Kinetic 1957 | 103 355 . . 213 1286 Thermal 338 | . 338 . . . . Explosive . | . . . . . . Electromagnetic . | . . . . . . Impact . | . . . . . . Slashing . | . . . . . . Piercing . | . . . . . . Highest Corruption 2 | . . 1 1 1 2 Average Corruption 1 | . . 1 1 1 2 Corruption Purged . | . . . . . . Corruption Blocked . | . . . . . . Effects 6 | . . . 2 4 . Message Errors 1 | . . . . 1 . Heat Flow Errors 1 | . . . 1 . . Data Loss (minor) 3 | . . . 1 2 . Misfires 1 | . . . . 1 . Overload Shots . | . . . . . . Overflow Damage 9 | . . . . . 9 Projectiles 9 | . . . . . 9 Explosions . | . . . . . . Melee . | . . . . . . Knockbacks 11 | . . . . . 11 Impact . | . . . . . . Kinetic 11 | . . . . . 11 Secondary . | . . . . . . Self-Inflicted Damage 7 | . . . . . 7 Shots . | . . . . . . Rammed 7 | . . . . . 7 Targets Rammed 7 | . . . . . 7 Kicked . | . . . . . . Crushed . | . . . . . . Highest Temperature 198 | . 129 . 119 16 198 Average Temperature 49 | . 42 . 65 7 61 Received Heat Transfer 1470 | . 174 . . . 1296 Siege Activations . | . . . . . . Robots Corrupted . | . . . . . . Combat Hostiles . | . . . . . . Parts Fried . | . . . . . . Impact Corruptions . | . . . . . . Robots Melted . | . . . . . . Combat Hostiles . | . . . . . . Parts Melted 5 | . 5 . . . . Heat Transferred 1147 | . 1147 . . . . Parts Sabotaged . | . . . . . . Parts Stolen . | . . . . . . Parts Stripped . | . . . . . . Power Chain Reactions . | . . . . . . Alert | -11 -10 -10 -10 -9 -8 ------- Run | Yrd Mat Min Exi Min Mat Peak Influence 348 | 10 348 99 . 135 334 Initial 99 | . 6 99 . . . Average 103 | 2 171 91 . 42 104 Maximum Alert Level 1 | . 1 . . . 1 Low Security (%) 83 | 100 62 100 . 100 83 Level 1 16 | . 37 . . . 16 Level 2 . | . . . . . . Level 3 . | . . . . . . Level 4 . | . . . . . . Level 5 . | . . . . . . High Security . | . . . . . . Max Security . | . . . . . . Squads Dispatched 5 | . 2 . . . 3 Investigation 2 | . 1 . . . 1 Extermination . | . . . . . . Reinforcement 3 | . 1 . . . 2 Assault . | . . . . . . Garrison . | . . . . . . Intercept . | . . . . . . Searches Triggered . | . . . . . . Construction Impeded 1 | . . . . . 1 Haulers Reinforced . | . . . . . . Active Scanning Responses . | . . . . . . Cargo Convoy Interrupts . | . . . . . . Stealth | -11 -10 -10 -10 -9 -8 --------- Run | Yrd Mat Min Exi Min Mat Distress Signals 3 | . . . . . 3 Communications Jammed . | . . . . . . Distress Signals . | . . . . . . Times Spotted 68 | . 21 . . 7 40 Peak Tracking Total 10 | . 3 . . 6 10 Tactical Retreats 7 | . 2 . . 1 4 Traps | -11 -10 -10 -10 -9 -8 ------- Run | Yrd Mat Min Exi Min Mat Traps Triggered 3 | . 1 1 . . 1 Indirectly . | . . . . . . Trap Hack Attempts . | . . . . . . Triggered . | . . . . . . Disarmed . | . . . . . . Reprogrammed . | . . . . . . Reused . | . . . . . . Traps Extracted . | . . . . . . Installed . | . . . . . . Triggered . | . . . . . . Machines | -11 -10 -10 -10 -9 -8 ---------- Run | Yrd Mat Min Exi Min Mat Machines Disabled 2 | . . . . . 2 Max in Single Turn 1 | . . . . . 1 Machines Repaired . | . . . . . . Machines Dismantled . | . . . . . . Machines Sabotaged . | . . . . . . Overloaded Fab Kills . | . . . . . . Hacking | -11 -10 -10 -10 -9 -8 --------- Run | Yrd Mat Min Exi Min Mat Machines Accessed 3 | . 1 1 . . 1 Terminals 2 | . 1 . . . 1 Fabricators . | . . . . . . Repair Stations . | . . . . . . Recycling Units . | . . . . . . Scanalyzers . | . . . . . . Garrison Access . | . . . . . . Total Hacks 4 | . 2 1 . . 1 Successful 1 | . . 1 . . . Failed 3 | . 2 . . . 1 Catastrophic 1 | . 1 . . . . Database Lockouts . | . . . . . . Manual 3 | . 2 . . . 1 Terminals 3 | . 2 . . . 1 Fabricators . | . . . . . . Repair Stations . | . . . . . . Recycling Units . | . . . . . . Scanalyzers . | . . . . . . Garrison Access . | . . . . . . Terminal Hacks 1 | . . 1 . . . Open Door 1 | . . 1 . . . Fabricator Hacks . | . . . . . . Repair Station Hacks . | . . . . . . Recycling Unit Hacks . | . . . . . . Scanalyzer . | . . . . . . Garrison Access Hacks . | . . . . . . Unauthorized Hacks . | . . . . . . Terminals . | . . . . . . Fabricators . | . . . . . . Repair Stations . | . . . . . . Recycling Units . | . . . . . . Scanalyzers . | . . . . . . Garrison Access . | . . . . . . Data Cores Recovered . | . . . . . . Used . | . . . . . . Hacking Detections 2 | . 1 . . . 1 Full Trace Events . | . . . . . . Feedback Events . | . . . . . . Feedback Blocked . | . . . . . . Robot Schematics Acquired . | . . . . . . Robots Built . | . . . . . . Authchips . | . . . . . . Time . | . . . . . . Total Robot Build Rating . | . . . . . . Part Schematics Acquired . | . . . . . . Parts Built . | . . . . . . Authchips . | . . . . . . Time . | . . . . . . Total Part Build Rating . | . . . . . . Parts Repaired . | . . . . . . Time . | . . . . . . Parts Recycled . | . . . . . . Recycled Matter . | . . . . . . Retrieved Matter . | . . . . . . Retrieved Components . | . . . . . . Parts Scanalyzed . | . . . . . . Part Schematics Acquired . | . . . . . . Parts Damaged . | . . . . . . Bothacking | -11 -10 -10 -10 -9 -8 ------------ Run | Yrd Mat Min Exi Min Mat Used RIF Installer . | . . . . . . Robots Hacked . | . . . . . . Non-combat . | . . . . . . Combat . | . . . . . . Robot Hacks Applied . | . . . . . . Relay Couplers Released . | . . . . . . Fabnet Peak Effective % . | . . . . . . Robots Rewired . | . . . . . . Allies Hacked . | . . . . . . Hacks Repelled . | . . . . . . Allies | -11 -10 -10 -10 -9 -8 -------- Run | Yrd Mat Min Exi Min Mat Total Allies . | . . . . . . Largest Group . | . . . . . . Highest-Rated Group . | . . . . . . Highest-Rated Ally . | . . . . . . Total Orders . | . . . . . . Ally Attacks . | . . . . . . Total Damage . | . . . . . . Kills . | . . . . . . Allies Corrupted . | . . . . . . Allies Melted . | . . . . . . Intel | -11 -10 -10 -10 -9 -8 ------- Run | Yrd Mat Min Exi Min Mat Robot Analysis Total . | . . . . . . Derelict Logs Recovered 2 | . . 1 . 1 . Drone Launches . | . . . . . . Drone Recoveries . | . . . . . . Exploration | -11 -10 -10 -10 -9 -8 ------------- Run | Yrd Mat Min Exi Min Mat Turns Passed 2569 | 110 627 236 183 500 913 Spaces Moved 1377 | 62 348 181 146 296 344 Core 4 | 2 . . . . 2 Treads 302 | . . 1 . 63 238 Legs 908 | 60 348 121 146 233 . Wheels 163 | . . 59 . . 104 Hover . | . . . . . . Flight . | . . . . . . Fastest Speed 50 | 50 120 115 125 125 105 Average Speed 138 | 117 133 122 125 133 167 Slowest Speed 600 | 120 190 170 125 165 600 Overloaded Moves . | . . . . . . Propulsion Burnouts . | . . . . . . Robots Hopped . | . . . . . . Cave-ins Triggered . | . . . . . . Exploration Rate (%) 46 | 4 65 45 53 66 45 Regions Visited 5 Branch Regions 3 Pre-discovered Areas 1 | . . . . 1 . Known Exits Taken 3 | . 1 1 1 . . Unknown Exits Taken 2 | 1 . . . 1 . Scrap Searched 3 | . . 1 . 2 . Spaces Dug . | . . . . . . Terrain Destroyed 30 | . . . . . 30 Melee . | . . . . . . Projectile 30 | . . . . . 30 AOE . | . . . . . . Terrain Rammed . | . . . . . . Walls Destroyed . | . . . . . . Machines Disabled . | . . . . . . Actions | -11 -10 -10 -10 -9 -8 --------- Run | Yrd Mat Min Exi Min Mat Total 1763 | 85 419 197 147 365 550 Wait 160 | . 14 2 . 31 113 Move 1372 | 61 347 180 145 295 344 Hop . | . . . . . . Pick Up 26 | 8 5 4 . 1 8 Fast Attach 12 | 5 . 1 . 1 5 Attach 19 | . 3 3 . 4 9 Detach 2 | . . 1 1 . . Swap 8 | . 2 2 . 3 1 Drop 12 | . 2 4 1 . 5 Fire 145 | 11 46 . . 30 58 Melee . | . . . . . . Ram 7 | . . . . . 7 Kick . | . . . . . . Crush . | . . . . . . Escape Stasis . | . . . . . . Rewire . | . . . . . . Trap . | . . . . . . Miscellaneous . | . . . . . . Route ------- -11/Scrapyard -10/Materials (discovered 3 exits: *Mat x2 / *Min) -10/Mines -10/Exiles -9/Mines -8/Materials (discovered 1 exit: [*Fac]) History --------- Turn | Location | Event 4 | -11/Scrapyard | Discovered new exit (range 16) 111 | -11/Scrapyard | Entered Materials 264 | -10/Materials | Discovered new exit (range 11) 314 | -10/Materials | Build established: Mutant 338 | -10/Materials | Identified exit to Materials 518 | -10/Materials | Discovered exit to Materials (range 4) 724 | -10/Materials | Discovered new exit (range 8) 736 | -10/Materials | Identified exit to Mines 738 | -10/Materials | Entered Mines 774 | -10/Mines | Learned Materials emergency access door positions 804 | -10/Mines | Met a Derelict who couldn't figure out how to use a Trap Extractor 967 | -10/Mines | Deemed a non-threat by the Exiles lab entrance 969 | -10/Mines | Discovered new exit (range 5) 972 | -10/Mines | Identified exit to Exiles 974 | -10/Mines | Entered Exiles 974 | -10/Exiles | Found Exiles lab abandoned 1142 | -10/Exiles | Discovered new exit (range 14) 1156 | -10/Exiles | Identified exit to Mines 1157 | -10/Exiles | Entered Mines 1241 | -9/Mines | Assembled infested the area 1246 | -9/Mines | Assisted by a Guerilla fighting off Assembled 1512 | -9/Mines | Core integrity fell below 50% 1529 | -9/Mines | Core integrity fell below 20% 1572 | -9/Mines | Lost 6 parts (1p2n1u2w) 1574 | -9/Mines | A weapon hastily lodged in a ceiling crevice suddenly fell to the ground 1634 | -9/Mines | Learned location of Zion (-6) 1651 | -9/Mines | Discovered new exit (range 5) 1657 | -9/Mines | Entered Materials 1657 | -8/Materials | Evolved 4 slots: Propulsion x1, Utility x3 2174 | -8/Materials | Discovered new exit (range 15) 2516 | -8/Materials | Lost 4 parts (1n1u2w) 2543 | -8/Materials | Core integrity fell below 50% 2559 | -8/Materials | Core integrity fell below 20% 2570 | -8/Materials | Destroyed by Y-45 Defender with Beam Rifle Last Messages --------------- 02489_ Acquired Imp. Signal Interpreter. 02528_ Acquired Prototype Flight Unit. 02529_ Identified Imp. VTOL Module. 02530_ Lgt. Treads destroyed. 02530_ Dropped Imp. VTOL Module. 02532_ Arm. Treads destroyed. 02537_ Slammed into G-47 Trooper. 02538_ Destabilizing: System corrupted (+2). 02539_ Slammed into G-47 Trooper. 02539_ Arm. Wheel broken. 02539_ Destabilizing: Short circuit. 02540_ G-47 Trooper suffers critical hit (Burn). 02543_ Slammed into G-47 Trooper. 02548_ Broken Arm. Wheel destroyed. 02563_ Structural Scanner destroyed. 02564_ Slammed into G-47 Trooper. 02564_ Imp. Trap Extractor broken. 02564_ Destabilizing: Short circuit. 02568_ Critical hit (Burn: +37). 02569_ Slammed into G-47 Trooper. Map ----- +----------------------------------------------------+ | ????????????????## < | | ????????????????## | | ????????????????#####+########## | | ????????????????## ####### | | ????????????????## # # | | ????????????????## # ?? # | | ????????????????## # ??? + | | ????????????????## # ??? # | | ????????????????## # ??? # | | ????????????????## # ??? # | | ????????????????## # ??? # | | ????????????????## # ??? # | | ????????????????########### ??? # | | ????????????????############??### | | ??????????????????????????????### | | ??????????????????????????????### | | ???????????????????????? ######## | | ?##########????????????? ######## | | ?##########????????????? # # | | ?## ! + ????????????? # """ # | | ?##""" ##????????????? # """ + | | ?##"R g##????????????? # """ # | | ?##""" YY##????????????? # # | | ?## gg ##?? ## ?? ###### # | | ?##= #### ## ?? ########+#### | | ?#######@### # ?? # % # | | ?#### g T + ?? + """ # | | ???## ### # ?? # "Y" + | | ???## ####### ? # """ " " # | | ???## ##+#########?## """ # | | ???## ## ##### """ # | | ???## ## #### # | | ???## ## ################# | | ???## ## ################# | | ???## ## ##??## ##### | | ???## / ##??## ##?## | | ???## ## ##??##! !! ##### | | ???## ## ##??## !! # ?## | | ???## ## ##??## !! ##### | | ???## ######+######### ##### | | ???## #### ##########/### | | ???## #### | | ???## #### T | | ???## #### | | ????? ??## # ######+### | | ????? ??######## ## ## | | ????? ?? # ## ?? ## | | ????? ????????## ## ???## | | ????? ????????## ## [ ???## | | ????? ????????## ######???## | +----------------------------------------------------+ Best States ------------- Heat Dissipation 31 Energy Generation 14 Energy Capacity 250 Matter Stores 300 Matter Capacity 300 Sight Range 16 Terrain Scan Range 16 Terrain Scan Density 85 Armor Coverage 600 Evasion (%) 55 Recoil Reduction 3 Trap Extractor Capacity 6 Item Schematics ----------------- None Robot Schematics ------------------ None Fabricated ------------ Nothing Alien Tech Used ----------------- None Achievements -------------- None Challenges ------------ None Game ------ Seed CompanionHellfireSegregator Manual? 0 Play Time 00:18:39 Cumulative 85.8 hours Start 2024.12.02 @ 01:57:04 End 2024.12.02 @ 02:14:47 Sessions 1 Manual Loads 0 Difficulty Rogue Special Mode None Game No. 90 Rogue 90 Adventurer 0 Explorer 0 Win Type - Total 0 Types 0/0/0/0/0/0/0/0/0 Lore% 12 Gallery% 37 Achievement% 33 Wizard Run 0 Options --------- Layout 2 ASCII 0 Keyboard 0 Movement Mouse Keybinds 0 Fullscreen 2 Font 16/SmallcapsGlow Map View 55x47 Zoom Use 5% Tactical HUD 1 Map Filters NONE Filters NONE Steam 1 RUN: 9bf9765e-bfe3-481d-bb48-a0013aeeab45